bitfinex-derivatives/quotes_ETHF0:USTF0_20210402
["timestamp","ask_amount","ask_price","bid_price","bid_amount"]
[1617396402192,4.78615,2100.0,2098.9,30.9423]
[1617396402590,1.8792,2100.0,2099.1,2.90695]
[1617396404193,1.8792,2100.0,2099.2,30.0]
[1617396404393,14.9944,2101.7,2099.2,30.0]
[1617396404594,2.90695,2101.0,2099.2,31.2165]
[1617396404793,2.90695,2101.0,2099.3,2.0]
[1617396404993,2.90695,2101.0,2099.5,2.0]
[1617396405193,2.90695,2101.0,2099.6,32.0]
[1617396405394,2.90695,2101.0,2099.6,32.9541]
[1617396405592,2.90695,2101.0,2099.6,30.9541]
[1617396406194,2.90695,2101.0,2099.7,2.0]
[1617396406396,2.90695,2101.0,2099.8,32.0]
[1617396406595,2.90695,2101.4,2100.9,2.90695]
[1617396406795,2.90695,2101.4,2100.9,3.86935]
[1617396406996,13.2165,2101.7,2100.9,3.86935]
[1617396408699,2.90695,2101.0,2100.9,3.86935]
[1617396408901,2.90695,2101.0,2100.9,2.90695]
[1617396409301,2.90695,2101.0,2100.1,0.942]
[1617396409502,2.90695,2101.0,2099.8,30.0]
[1617396410102,2.90695,2101.0,2099.8,32.0]
[1617396410302,13.2165,2101.7,2099.8,30.0]
[1617396410505,13.2165,2101.7,2099.9,2.0]
[1617396410703,9.4514,2101.7,2101.4,4.15765]
[1617396410902,13.4452,2101.8,2101.5,30.0]
[1617396411105,10.6662,2101.8,2101.5,30.0]
[1617396411303,8.7561,2101.8,2101.5,30.0]
[1617396411505,7.7449,2101.8,2101.5,30.0]
[1617396411703,5.6144,2101.8,2101.5,30.0]
[1617396411903,2.1157,2101.8,2101.5,30.0]
[1617396412303,0.8842,2101.8,2101.5,30.0]
[1617396412705,2.90695,2101.6,2101.2,2.90695]
[1617396413313,2.90695,2101.6,2100.7,0.964]
[1617396413504,2.90695,2101.6,2100.5,31.1]
[1617396413905,2.90695,2101.6,2100.5,1.1]
[1617396414303,2.90695,2101.6,2100.2,1.1]
[1617396414503,2.90695,2101.6,2098.8,32.0]
[1617396414703,0.8842,2101.8,2100.4,2.90695]
[1617396415705,0.8842,2101.8,2100.4,3.84575]
[1617396416709,0.8842,2101.8,2100.9,2.90695]
[1617396417106,0.8842,2101.8,2101.0,30.0]
[1617396418709,2.90695,2101.1,2101.0,30.0]
[1617396418910,4.37375,2101.1,2100.4,0.9388]
[1617396419312,4.37375,2101.1,2099.9,30.0]
[1617396420310,6.37375,2101.1,2099.7,30.0]
[1617396420810,6.37375,2101.1,2099.8,2.90695]
[1617396420811,4.49265,2100.5,2099.8,2.90695]
[1617396421611,13.8545,2100.4,2099.0,1.1]
[1617396421914,2.0,2100.3,2099.0,1.1]
[1617396422711,13.8545,2100.4,2099.4,2.90695]
[1617396423616,13.8545,2100.4,2099.0,1.1]
[1617396423811,13.8545,2100.4,2098.8,30.0]
[1617396424613,2.0,2100.3,2098.8,30.0]
[1617396424812,2.90695,2098.9,2098.8,30.0]
[1617396425611,1.9474,2099.2,2098.8,30.0]
[1617396426412,13.3573,2099.1,2098.4,30.9515]
[1617396426813,13.3573,2099.1,2098.7,2.90695]
[1617396427713,13.0846,2099.0,2098.7,2.90695]
[1617396430420,14.5291,2099.0,2098.7,2.90695]
[1617396430621,14.5291,2099.0,2098.4,0.9515]
[1617396430820,14.5291,2099.0,2098.5,2.90695]
[1617396431820,14.5291,2099.0,2098.5,32.90695]
[1617396432020,13.0846,2099.0,2098.5,32.90695]
[1617396432820,13.0846,2099.0,2098.8,2.90695]
[1617396433621,12.1496,2099.0,2098.8,2.90695]
[1617396434423,11.2046,2099.0,2098.8,2.90695]
[1617396434623,10.2546,2099.0,2098.8,32.90695]
[1617396434829,9.2946,2099.0,2098.8,32.90695]
[1617396436429,8.3506,2099.0,2098.8,32.90695]
[1617396438432,7.3936,2099.0,2098.8,32.90695]
[1617396439833,6.4436,2099.0,2098.8,32.90695]
[1617396440035,6.295,2099.0,2098.8,32.90695]
[1617396441035,5.349,2099.0,2098.8,32.90695]
[1617396441435,5.1811,2099.0,2098.8,32.90695]
[1617396442939,5.9494,2099.0,2098.8,32.90695]
[1617396444242,5.7476,2099.0,2098.8,32.90695]
[1617396444843,5.7476,2099.0,2098.8,2.90695]
[1617396446444,5.7476,2099.0,2097.7,2.0613]
[1617396446845,5.7476,2099.0,2098.1,2.90695]
[1617396447045,2.0,2098.9,2098.1,2.90695]
[1617396447256,2.0,2098.9,2097.7,0.9613]
[1617396447454,2.0,2098.9,2097.7,0.949]
[1617396447655,2.0,2098.9,2097.0,31.29931615]
[1617396448047,2.0,2098.9,2097.1,0.22113653]
[1617396448645,5.7476,2099.0,2097.1,0.22113653]
[1617396448845,5.7476,2099.0,2097.8,2.90695]
[1617396449447,5.7476,2099.0,2097.1,0.9528]
[1617396449846,2.0,2098.9,2097.1,0.9528]
[1617396450450,2.0,2098.9,2097.0,1.29931615]
[1617396450647,12.7812,2098.8,2097.0,1.29931615]
[1617396450847,2.90695,2097.1,2097.0,4.20626615]
[1617396451048,4.83355,2097.1,2097.0,4.20626615]
[1617396451849,6.83355,2097.1,2095.9,0.9492]
[1617396452049,6.83355,2097.1,2095.1,4.70842546]
[1617396452249,13.2639,2097.0,2095.1,34.70842546]
[1617396452450,13.2639,2097.0,2095.2,0.22268667]
[1617396452649,13.829,2097.0,2095.2,0.22268667]
[1617396452852,13.829,2097.0,2096.9,2.90695]
[1617396453051,13.829,2097.0,2096.9,0.9457]
[1617396453250,13.829,2097.0,2095.9,0.9415]
[1617396454149,13.829,2097.0,2095.9,1.9026]
[1617396454950,15.829,2097.0,2095.0,0.9647]
[1617396456851,15.829,2097.0,2096.2,2.90695]
[1617396458856,2.90695,2096.5,2096.2,2.90695]
[1617396459056,4.40795,2096.5,2096.2,2.90695]
[1617396459256,4.40795,2096.5,2095.4,0.9617]
[1617396459456,4.40795,2096.5,2095.0,0.9647]
[1617396460056,2.0,2096.4,2095.0,0.9647]
[1617396460657,4.40795,2096.5,2095.0,0.9647]
[1617396460860,2.90695,2095.4,2095.0,0.9647]
[1617396461058,4.17745,2095.4,2095.0,0.9647]
[1617396461460,4.17745,2095.4,2094.8,2.90695]
[1617396461661,2.0,2095.3,2094.8,2.90695]
[1617396461859,4.17745,2095.4,2094.8,2.90695]
[1617396462860,2.0,2095.3,2094.8,2.90695]
[1617396463061,4.87305,2094.9,2094.8,2.90695]
[1617396463661,4.87305,2094.9,2094.1,0.9578]
[1617396464462,4.87305,2094.9,2094.1,1.9222]
[1617396465060,1.9661,2094.9,2094.4,2.90695]
[1617396466963,2.90695,2094.5,2094.4,2.90695]
[1617396467363,13.5164,2094.8,2094.4,2.90695]
[1617396468566,9.2981,2094.8,2094.4,2.90695]
[1617396468966,9.2981,2094.8,2094.7,2.90695]
[1617396469166,9.2981,2094.8,2094.7,3.86485]
[1617396469365,9.2981,2094.8,2094.7,2.90695]
[1617396469566,10.916,2094.8,2094.1,1.9222]
[1617396470270,13.0658,2094.7,2094.1,1.9222]
[1617396471066,13.0658,2094.7,2094.6,2.90695]
[1617396472969,15.97275,2094.7,2094.6,2.90695]
[1617396473768,15.97275,2094.7,2094.1,1.9222]
[1617396474370,15.97275,2094.7,2093.4,0.9406]
[1617396474571,15.97275,2094.7,2092.1,0.02]
[1617396474771,15.97275,2094.7,2091.6,1.1]
[1617396474971,13.0658,2094.7,2094.1,2.90695]
[1617396476973,2.90695,2094.2,2094.1,2.90695]
[1617396477172,4.60795,2094.2,2094.1,2.90695]
[1617396477572,4.60795,2094.2,2093.4,0.9503]
[1617396477772,4.60795,2094.2,2092.8,0.9454]
[1617396477972,4.60795,2094.2,2091.5,30.0]
[1617396479176,1.701,2094.2,2091.5,30.0]
[1617396480277,1.701,2094.2,2090.1,30.9691]
[1617396480478,1.691,2094.2,2090.2,2.0]
[1617396481080,1.691,2094.2,2092.5,2.90695]
[1617396482282,2.0,2094.6,2092.5,3.87575]
[1617396483083,2.90695,2092.9,2092.5,2.90695]
[1617396483282,4.68735,2092.9,2092.5,2.90695]
[1617396484283,13.5083,2092.8,2092.5,2.90695]
[1617396484883,12.7247,2092.7,2092.5,2.90695]
[1617396485687,12.755,2092.6,2092.5,2.90695]
[1617396487090,15.66195,2092.6,2092.5,2.90695]
[1617396487490,15.66195,2092.6,2091.0,0.958]
[1617396487689,15.66195,2092.6,2088.9,34.67464051]
[1617396487891,15.66195,2092.6,2088.9,30.0]
[1617396488292,2.0,2092.5,2088.9,30.0]
[1617396488492,2.0,2092.5,2088.7,2.0]
[1617396488493,15.66195,2092.6,2089.0,2.0]
[1617396488894,15.66195,2092.6,2088.8,30.0]
[1617396489095,12.755,2092.6,2090.4,2.90695]
[1617396489294,2.0,2092.5,2090.4,2.90695]
[1617396489697,32.0,2092.5,2090.4,2.90695]
[1617396489895,30.0,2092.4,2090.4,2.90695]
[1617396490095,2.0,2092.3,2090.4,2.90695]
[1617396490295,32.0,2092.3,2090.4,2.90695]
[1617396490496,32.0,2092.3,2090.0,0.9499]
[1617396490696,32.0,2092.3,2089.2,0.9706]
[1617396490895,31.99,2092.3,2089.2,0.9706]
[1617396491097,31.99,2092.3,2089.7,2.90695]
[1617396491997,31.99,2092.3,2088.6,0.9534]
[1617396493103,31.99,2092.3,2090.1,2.90695]
[1617396493316,31.99,2092.3,2089.7,0.9504]
[1617396493517,31.99,2092.3,2088.6,0.9534]
[1617396494707,33.09,2092.3,2088.6,0.9534]
[1617396495106,33.09,2092.3,2088.8,2.90695]
[1617396495305,31.99,2092.3,2088.8,2.90695]
[1617396495718,31.99,2092.3,2086.2,0.02]
[1617396496100,33.09,2092.3,2086.2,0.02]
[1617396496504,31.99,2092.3,2085.5,33.1]
[1617396496702,30.0,2092.2,2085.5,33.1]
[1617396496902,1.99,2092.1,2085.5,33.1]
[1617396497102,2.90695,2088.5,2088.4,2.90695]
[1617396497303,4.17715,2088.5,2086.2,0.02]
[1617396498303,4.17715,2088.5,2086.2,0.9716]
[1617396498506,13.4681,2088.4,2086.2,0.9716]
[1617396499104,13.4681,2088.4,2088.3,2.90695]
[1617396499503,13.1697,2088.4,2088.3,2.90695]
[1617396499703,12.2741,2088.4,2088.3,2.90695]
[1617396500103,12.1333,2088.4,2088.3,2.90695]
[1617396500304,12.0799,2088.4,2088.3,2.90695]
[1617396500505,11.1297,2088.4,2088.3,2.90695]
[1617396500705,1.99,2091.9,2088.3,2.90695]
[1617396501106,2.0,2092.5,2089.8,2.90695]
[1617396502106,2.0,2092.5,2089.8,4.40665]
[1617396502506,12.7247,2092.7,2089.8,4.40665]
[1617396503309,12.7247,2092.7,2091.1,4.72755]
[1617396505210,12.7247,2092.7,2091.7,2.90695]
[1617396505412,12.7247,2092.7,2091.7,4.26705]
[1617396507211,2.90695,2091.8,2091.7,4.26705]
[1617396507614,2.90695,2091.8,2091.7,2.90695]
[1617396508415,2.90695,2091.8,2090.5,0.9452]
[1617396509016,2.90695,2091.8,2089.8,0.9608]
[1617396509216,1.9952,2092.5,2091.2,2.90695]
[1617396509416,12.0067,2092.7,2091.2,4.36435]
[1617396511216,12.0067,2092.7,2091.7,2.90695]
[1617396511416,12.0067,2092.7,2091.7,5.37505]
[1617396513218,12.0067,2092.7,2092.6,2.90695]
[1617396513417,12.0067,2092.7,2092.6,4.44345]
[1617396514923,12.0067,2092.7,2091.7,32.4681]
[1617396515320,12.0067,2092.7,2092.6,2.90695]
[1617396515722,12.0067,2092.7,2091.7,32.4681]
[1617396515922,12.0067,2092.7,2091.1,0.9614]
[1617396516125,12.0067,2092.7,2090.4,32.9459]
[1617396516522,12.0067,2092.7,2090.4,30.9459]
[1617396517125,12.0067,2092.7,2090.4,0.9459]
[1617396517322,12.0067,2092.7,2091.3,2.90695]
[1617396517722,13.4272,2092.6,2091.3,2.90695]
[1617396518725,13.4272,2092.6,2090.4,0.9459]
[1617396519123,13.4272,2092.6,2089.8,0.9608]
[1617396519323,2.90695,2090.8,2089.8,0.9608]
[1617396521324,1.7072,2091.2,2090.5,2.90695]
[1617396522136,1.7072,2091.2,2090.5,3.85355]
[1617396522334,1.4026,2091.7,2090.5,3.85355]
[1617396523127,13.232,2091.6,2090.5,3.85355]
[1617396523334,13.232,2091.6,2090.8,2.90695]
[1617396525128,13.232,2091.6,2090.9,2.0]
[1617396525329,13.232,2091.6,2091.5,2.90695]
[1617396526129,13.232,2091.6,2090.5,0.9696]
[1617396527430,13.232,2091.6,2091.4,2.90695]
[1617396529430,2.90695,2091.5,2091.4,2.90695]
[1617396530434,6.14585,2090.7,2090.5,0.9696]
[1617396531436,2.90695,2090.6,2090.5,0.9696]
[1617396531836,2.90695,2090.6,2090.4,2.90695]
[1617396533144,2.90695,2090.6,2089.5,32.0]
[1617396533344,2.90695,2089.9,2089.8,3.86775]
[1617396533548,8.03765,2090.7,2089.8,3.86775]
[1617396534747,8.03765,2090.7,2089.8,2.90695]
[1617396534949,8.03765,2090.7,2089.5,32.0]
[1617396535148,8.03765,2090.7,2089.5,2.0]
[1617396535348,8.03765,2090.7,2089.6,2.90695]
[1617396536550,8.03765,2090.7,2089.3,0.9536]
[1617396536750,13.7703,2090.6,2087.9,1.1]
[1617396536951,2.0,2090.5,2087.9,1.1]
[1617396537150,14.8277,2090.5,2088.7,0.23970819]
[1617396537552,4.50255,2088.8,2088.7,1.18710819]
[1617396537753,4.50255,2088.8,2088.7,0.9474]
[1617396537951,4.50255,2088.8,2088.2,2.90695]
[1617396538153,4.50255,2088.8,2088.7,0.24037843]
[1617396538353,4.50255,2088.8,2088.3,0.24051325]
[1617396538752,12.7519,2088.7,2088.2,3.87575]
[1617396539156,12.7519,2088.7,2088.3,2.24050153]
[1617396539355,12.7519,2088.7,2088.4,0.24061098]
[1617396539552,12.7519,2088.7,2088.6,2.90695]
[1617396539764,12.7519,2088.7,2088.6,3.85175]
[1617396541664,12.6415,2088.7,2088.6,3.85175]
[1617396542265,12.2991,2088.7,2088.6,3.85175]
[1617396542564,11.9791,2088.7,2088.6,3.85175]
[1617396542766,11.9791,2088.7,2088.6,0.9448]
[1617396543165,10.0671,2088.7,2088.6,0.9448]
[1617396543366,7.2305,2088.7,2088.6,0.9448]
[1617396543565,6.1841,2088.7,2088.6,4.09208338]
[1617396544366,5.842,2088.7,2088.6,4.09208338]
[1617396544767,4.8925,2088.7,2088.6,4.09208338]
[1617396544966,4.7466,2088.7,2088.6,4.09208338]
[1617396545166,4.5837,2088.7,2088.6,3.85175]
[1617396546771,3.9127,2088.7,2088.6,3.85175]
[1617396547372,3.9127,2088.7,2088.6,2.90695]
[1617396548072,3.9127,2088.7,2088.2,0.9688]
[1617396548272,3.9127,2088.7,2087.4,0.9692]
[1617396548472,5.8153,2088.7,2087.4,0.9692]
[1617396548873,5.8153,2088.7,2087.5,0.24171222]
[1617396549474,2.90695,2087.6,2087.5,0.24171222]
[1617396550075,2.90695,2087.6,2087.4,0.24209268]
[1617396550477,2.90695,2087.6,2087.3,2.90695]
[1617396556176,4.58025,2087.6,2087.3,2.90695]
[1617396556777,4.58025,2087.6,2086.1,32.0]
[1617396557579,1.6733,2087.6,2086.3,2.90695]
[1617396557978,1.6733,2087.6,2085.9,0.9701]
[1617396559181,13.162,2088.4,2085.9,0.9701]
[1617396559380,13.162,2088.4,2085.9,2.6111]
[1617396559581,13.162,2088.4,2086.5,2.90695]
[1617396559780,13.162,2088.4,2086.5,3.85155]
[1617396559980,13.162,2088.4,2086.5,5.80205]
[1617396560582,13.162,2088.4,2086.5,4.85745]
[1617396560782,13.162,2088.4,2086.5,1.9505]
[1617396561182,13.162,2088.4,2085.9,0.9701]
[1617396561183,2.0,2088.3,2085.9,0.9701]
[1617396561582,2.0,2088.3,2086.2,2.90695]
[1617396561783,2.0,2088.3,2086.2,3.85445]
[1617396562186,14.7528,2088.4,2086.2,3.85445]
[1617396562384,13.9219,2088.3,2086.2,3.85445]
[1617396563587,2.90695,2086.3,2086.2,3.85445]
[1617396563786,2.90695,2086.3,2086.2,0.9475]
[1617396564187,2.90695,2086.3,2085.9,0.9701]
[1617396564387,2.90695,2086.3,2085.8,0.9561]
[1617396564588,2.90695,2086.3,2084.9,0.9492]
[1617396564789,2.90695,2086.3,2083.7,3.1]
[1617396565188,13.3119,2086.2,2083.7,2.0]
[1617396565590,13.3119,2086.2,2084.5,2.90695]
[1617396565791,13.3119,2086.2,2084.5,3.86625]
[1617396567594,2.90695,2084.6,2084.5,3.86625]
[1617396567994,2.90695,2084.6,2083.7,0.9542]
[1617396568194,2.90695,2084.6,2083.4,0.9653]
[1617396568394,2.90695,2084.6,2083.4,0.9615]
[1617396568796,13.3322,2084.5,2083.4,0.9615]
[1617396568996,14.657,2084.5,2083.4,0.9615]
[1617396569596,14.657,2084.5,2084.1,2.90695]
[1617396569795,14.657,2084.5,2082.5,6.72507536]
[1617396569796,1.3248,2084.5,2081.7,2.0]
[1617396569999,1.3248,2084.5,2081.7,1.1]
[1617396570197,1.3248,2084.5,2081.0,0.9742]
[1617396570599,12.8188,2084.4,2081.0,0.9742]
[1617396570800,2.0,2084.3,2081.0,0.9742]
[1617396570999,12.8188,2084.4,2081.0,0.9742]
[1617396571601,12.8188,2084.4,2081.9,2.90695]
[1617396571800,12.8188,2084.4,2081.0,0.9742]
[1617396572001,30.0,2084.3,2081.0,0.9742]
[1617396572203,0.9588,2084.3,2081.0,0.9742]
[1617396572402,12.8188,2084.4,2081.0,0.9742]
[1617396573703,12.8188,2084.4,2081.0,2.8002]
[1617396574102,12.8188,2084.4,2081.1,2.0]
[1617396574702,12.8188,2084.4,2081.0,0.9742]
[1617396574903,14.8188,2084.4,2081.0,0.9742]
[1617396575107,12.8188,2084.4,2081.0,0.9742]
[1617396575705,12.8188,2084.4,2082.5,2.90695]
[1617396575907,12.8188,2084.4,2082.5,3.85355]
[1617396577307,12.8188,2084.4,2082.6,2.0]
[1617396577511,12.8188,2084.4,2082.6,2.9513]
[1617396577714,12.8188,2084.4,2083.6,2.90695]
[1617396577908,12.8188,2084.4,2083.5,0.958]
[1617396579608,2.90695,2083.6,2083.5,3.86495]
[1617396580409,12.8188,2084.4,2083.5,3.86495]
[1617396580611,12.8188,2084.4,2083.6,2.0]
[1617396580810,11.8485,2084.4,2083.6,2.0]
[1617396581010,10.8885,2084.4,2083.5,5.23975]
[1617396581210,6.2053,2084.4,2083.6,2.0]
[1617396581611,2.90695,2085.3,2084.3,2.90695]
[1617396581812,2.90695,2085.3,2084.3,5.34795]
[1617396582014,2.0,2087.8,2084.4,2.0]
[1617396582215,2.0,2088.5,2084.4,2.9561]
[1617396583429,2.0,2088.5,2084.5,2.0]
[1617396583629,2.90695,2086.3,2085.9,2.90695]
[1617396584216,2.0,2088.9,2085.9,2.90695]
[1617396584814,2.0,2089.4,2085.9,3.85875]
[1617396585014,2.0,2089.4,2085.9,5.85875]
[1617396585614,2.0,2089.4,2086.8,2.90695]
[1617396585817,2.0,2089.4,2086.8,4.65325]
[1617396587015,2.0,2089.6,2086.8,4.65325]
[1617396587816,2.90695,2087.4,2087.2,2.90695]
[1617396589618,2.80225,2087.4,2086.8,2.7182]
[1617396589818,2.80225,2087.4,2087.1,2.90695]
[1617396590619,1.86225,2087.4,2087.1,2.90695]
[1617396591120,1.84935,2087.4,2087.1,2.90695]
[1617396591722,1.84935,2087.4,2086.4,3.85525]
[1617396591920,1.84935,2087.4,2086.4,2.90695]
[1617396592520,1.84935,2087.4,2086.5,2.0]
[1617396593323,0.91935,2087.4,2086.5,2.0]
[1617396593523,0.91935,2087.4,2086.5,3.2228]
[1617396593723,0.91935,2087.4,2087.3,2.90695]
[1617396593924,0.91935,2087.4,2087.3,0.9471]
[1617396594125,0.91935,2087.4,2086.5,2.0]
[1617396594327,2.75915,2087.4,2086.4,0.9689]
[1617396595526,0.91935,2087.4,2086.4,0.9689]
[1617396595726,1.7019,2087.6,2086.5,2.90695]
[1617396596929,13.1696,2088.2,2086.5,2.90695]
[1617396597327,15.1696,2088.2,2086.5,2.90695]
[1617396597726,2.90695,2086.9,2086.8,2.90695]
[1617396597927,4.29935,2086.9,2086.4,0.9689]
[1617396598128,4.29935,2086.9,2085.9,0.9518]
[1617396598728,4.29935,2086.9,2084.3,0.9688]
[1617396598928,2.0,2086.8,2084.3,0.9688]
[1617396599728,2.0,2086.8,2085.2,2.90695]
[1617396601829,2.90695,2085.3,2085.2,2.90695]
[1617396602029,4.55805,2085.3,2084.4,0.9561]
[1617396602631,16.55805,2085.3,2084.4,0.9561]
[1617396603828,16.55805,2085.3,2085.2,2.90695]
[1617396604430,16.55805,2085.3,2084.4,0.9561]
[1617396605229,16.55805,2085.3,2083.4,2.0]
[1617396605429,2.0,2085.2,2082.7,2.0]
[1617396605628,2.0,2085.2,2079.5,7.618]
[1617396605828,4.71305,2083.6,2083.5,0.9519]
[1617396606029,4.71305,2083.6,2083.3,2.90695]
[1617396606628,1.8061,2083.6,2083.3,2.90695]
[1617396607229,1.8061,2083.6,2081.9,0.9672]
[1617396607830,1.8061,2083.6,2082.6,2.90695]
[1617396608229,45.632,2085.2,2082.6,3.87605]
[1617396608430,15.632,2085.2,2082.6,3.87605]
[1617396608629,45.632,2085.2,2082.6,3.87605]
[1617396609029,45.632,2085.2,2082.6,2.90695]
[1617396609630,15.632,2085.2,2082.6,2.90695]
[1617396609831,15.632,2085.2,2084.2,2.90695]
[1617396610233,15.632,2085.2,2082.6,0.9699]
[1617396610432,45.632,2085.2,2082.6,0.9699]
[1617396610832,15.632,2085.2,2082.6,0.9699]
[1617396611632,13.632,2085.2,2082.6,0.9699]
[1617396611833,13.632,2085.2,2084.7,2.90695]
[1617396612034,13.632,2085.2,2083.7,0.9659]
[1617396612233,13.632,2085.2,2083.3,1.452]
[1617396612234,15.2932,2085.2,2083.3,1.452]
[1617396613134,15.2932,2085.2,2083.3,2.3983]
[1617396613333,15.2932,2085.2,2083.3,0.9463]
[1617396613534,15.2932,2085.2,2082.6,0.9699]
[1617396613734,30.0,2085.1,2082.6,0.9699]
[1617396613935,2.0,2085.0,2083.3,2.90695]
[1617396614736,15.2932,2085.2,2083.3,2.90695]
[1617396614936,17.2932,2085.2,2083.3,2.90695]
[1617396615536,47.2932,2085.2,2083.3,2.90695]
[1617396615937,47.2932,2085.2,2083.6,2.90695]
[1617396616136,17.2932,2085.2,2083.6,2.90695]
[1617396616537,47.2932,2085.2,2083.6,2.90695]
[1617396617939,4.17595,2083.7,2083.6,2.90695]
[1617396619139,2.90695,2083.7,2083.6,2.90695]
[1617396621646,1.8579,2084.6,2083.6,2.90695]
[1617396621845,2.90695,2084.6,2084.5,2.90695]
[1617396622245,13.632,2085.2,2084.5,2.90695]
[1617396622645,13.3942,2085.2,2084.5,2.90695]
[1617396623447,12.4542,2085.2,2084.5,2.90695]
[1617396623847,12.4542,2085.2,2085.1,2.90695]
[1617396628651,14.90695,2085.3,2085.1,2.90695]
[1617396629151,14.90695,2085.3,2085.2,2.0]
[1617396630052,12.0,2085.3,2085.2,2.0]
[1617396630452,12.0,2085.3,2085.1,2.90695]
[1617396632853,12.0,2085.3,2085.2,2.0]
[1617396633054,12.0,2085.3,2085.2,3.4206]
[1617396633959,11.05,2085.3,2085.2,3.4206]
[1617396634160,8.8903,2085.3,2085.2,3.4206]
[1617396636364,11.0291,2087.0,2085.2,3.4206]
[1617396636569,10.0792,2087.0,2085.2,3.4206]
[1617396637966,10.0792,2087.0,2086.9,2.90695]
[1617396639163,10.0792,2087.0,2086.9,3.85485]
[1617396639763,1.1,2089.8,2086.9,3.85485]
[1617396639965,1.1,2089.8,2089.7,2.90695]
[1617396640165,2.41896534,2092.9,2089.7,1.6115]
[1617396640364,13.1982,2090.6,2089.7,1.6115]
[1617396640567,56.5818,2090.2,2087.1,79.7344]
[1617396641366,56.5818,2090.2,2087.2,3.5668]
[1617396641767,56.5818,2090.2,2087.2,1.5668]
[1617396641966,2.90695,2088.0,2087.9,2.90695]
[1617396642166,2.90695,2088.0,2087.2,1.5668]
[1617396642566,2.90695,2088.0,2086.3,74.9698]
[1617396643367,1.2938,2088.8,2084.8,2.571]
[1617396643567,2.0,2090.5,2087.3,62.5137]
[1617396643968,2.0,2090.5,2088.1,2.90695]
[1617396644369,30.0,2090.4,2088.1,2.90695]
[1617396644568,2.0,2090.5,2088.1,4.44105]
[1617396644969,85.67055,2090.7,2088.1,4.44105]
[1617396645972,85.67055,2090.7,2089.2,2.90695]
[1617396646172,6.14585,2090.7,2089.2,4.20525]
[1617396647573,6.14585,2090.7,2088.7,56.9758]
[1617396647773,14.6004,2090.6,2088.7,56.9758]
[1617396647973,2.0,2090.5,2088.7,56.9758]
[1617396648173,2.90695,2088.8,2088.7,56.9758]
[1617396648375,2.90695,2088.8,2088.4,2.90695]
[1617396649977,1.4898,2089.6,2088.4,2.90695]
[1617396650177,1.4898,2089.6,2088.7,2.90695]
[1617396650578,1.4898,2089.6,2087.8,77.1678]
[1617396651392,12.8702,2089.5,2087.8,77.1678]
[1617396652186,14.0095,2089.4,2087.8,77.1678]
[1617396653385,14.0095,2089.4,2087.9,2.0]
[1617396653585,14.0095,2089.4,2087.8,77.1678]
[1617396654985,3.4235,2089.3,2087.8,69.6631]
[1617396655186,30.0,2089.2,2085.0,0.9553]
[1617396655386,57.3176,2088.9,2085.6,60.2788]
[1617396655587,57.3176,2088.9,2085.6,59.3252]
[1617396655588,30.0,2088.8,2085.6,59.3252]
[1617396655786,2.0,2088.7,2085.6,59.3252]
[1617396655987,32.0,2088.7,2085.6,59.3252]
[1617396656187,32.0,2088.7,2086.5,2.90695]
[1617396657489,32.0,2088.7,2085.6,59.3252]
[1617396658088,32.0,2088.7,2086.2,2.90695]
[1617396658489,2.0,2088.7,2086.2,2.90695]
[1617396658889,1.6553,2088.8,2086.2,2.90695]
[1617396659289,1.6553,2088.8,2086.2,4.48745]
[1617396660091,1.6553,2088.8,2087.7,2.90695]
[1617396660289,2.0,2089.1,2087.7,2.90695]
[1617396660689,32.0,2089.1,2087.0,67.1919]
[1617396662291,2.90695,2087.1,2087.0,67.1919]
[1617396662492,2.90695,2087.1,2086.5,2.90695]
[1617396663092,4.26315,2087.1,2086.1,59.1767]
[1617396664096,1.3562,2087.1,2086.2,2.90695]
[1617396666200,2.90695,2086.3,2086.2,2.90695]
[1617396666401,4.14385,2086.3,2086.2,2.90695]
[1617396666801,1.2369,2086.3,2086.2,2.90695]
[1617396667400,26.6893,2087.0,2086.2,2.90695]
[1617396668203,2.90695,2086.3,2086.2,2.90695]
[1617396668402,4.49155,2086.3,2086.2,2.90695]
[1617396668802,4.49155,2086.3,2084.1,2.0]
[1617396669002,4.49155,2086.3,2084.3,67.6287]
[1617396670305,1.5846,2086.3,2086.0,2.90695]
[1617396672204,2.90695,2086.1,2086.0,2.90695]
[1617396673405,28.2059,2087.0,2086.0,2.90695]
[1617396674205,28.2059,2087.0,2086.5,2.90695]
[1617396674617,28.2059,2087.0,2085.8,60.4563]
[1617396675410,28.2059,2087.0,2084.5,0.9639]
[1617396675618,28.2059,2087.0,2085.2,79.4936]
[1617396675819,28.2059,2087.0,2085.3,2.0]
[1617396676208,2.90695,2086.2,2086.1,2.90695]
[1617396677207,2.90695,2086.2,2085.2,79.4936]
[1617396677407,2.90695,2086.2,2084.3,2.0]
[1617396677607,2.90695,2086.2,2084.3,4.571]
[1617396678209,1.6868,2086.6,2085.8,2.90695]
[1617396678807,1.6868,2086.6,2084.3,4.571]
[1617396680409,26.6893,2087.0,2086.5,2.90695]